Cogmind - Beta 15 @@@ ROGUE MODE // 2025.09.28 @ 14:08:36 Player: Autumn Result: Destroyed by H-55 Commando with Gauss Rifle Performance ------------- Evolutions (2) 1000 Regions Visited (3) 600 Robots Destroyed (55) 275 Value Destroyed (1354) 1354 Prototype IDs (2) 40 Alien Tech Used (0) 0 Bonus (13) 13 TOTAL SCORE: 3282 Bonus ------- High Alert Combat Kills 13 Cogmind --------- Core Integrity 0/550 Matter 153/300 Energy 15/100 System Corruption 0% Temperature Cool (6) Movement Core (350) Ox6 Location -8/Materials Parts ------- > --- POWER (1) -------- (None) > --- PROPULSION (3) --- (None) > --- UTILITY (3) ------ Large Storage Unit > --- WEAPON (4) ------- (None) > --- INVENTORY (15) --- Ion Engine Ion Engine Cesium-ion Thruster Improved Heat Sink Cooling System Improved Medium Armor Plating Improved Shield Generator EM Pulse Gun Beam Rifle Particle Gun Pulse Rifle Beam Cannon Assault Cannon Peak State ------------ > --- POWER ------------ Nuclear Core > --- PROPULSION ------- Aluminum Leg Aluminum Leg > --- UTILITY ---------- Large Storage Unit Improved Targeting Computer Improved Shield Generator > --- WEAPON ----------- Gatling Laser Gatling Laser Assault Cannon Missile Launcher > --- INVENTORY -------- Ion Engine Ion Engine Cesium-ion Thruster Improved Heat Sink Cooling System Improved Medium Armor Plating Improved Shield Generator EM Pulse Gun Beam Rifle Beam Rifle Particle Gun Pulse Rifle Beam Cannon Assault Cannon [Rating: 29] Favorites ----------- Power Ion Engine Engine Ion Engine Power Core Nuclear Core Propulsion Aluminum Leg Leg Aluminum Leg Utility Large Storage Unit Device Improved Shield Generator Storage Large Storage Unit Processor Improved Targeting Computer Protection Hardened Light Armor Plating Weapon Gatling Laser Energy Gun Gatling Laser Energy Cannon Beam Cannon Ballistic Gun Assault Rifle Ballistic Cannon Assault Cannon Launcher Grenade Launcher Build | -11 -10 -9 -8 ------- Run | Yrd Mat Mat Mat Slots Evolved 4 | . . 2 2 Power . | . . . . Propulsion 1 | . . . 1 Utility 1 | . . . 1 Weapon 2 | . . 2 . Parts Attached 33 | 6 2 7 18 Power 5 | 1 . 2 2 Engine 4 | 1 . 2 1 Core 1 | . . . 1 Reactor . | . . . . Propulsion 5 | 2 . . 3 Treads . | . . . . Leg 5 | 2 . . 3 Wheel . | . . . . Hover . | . . . . Flight . | . . . . Utility 7 | 1 . 2 4 Device 1 | . . . 1 Storage 2 | 1 . 1 . Processor 2 | . . 1 1 Hackware . | . . . . Protection 2 | . . . 2 Artifact . | . . . . Weapon 16 | 2 2 3 9 Energy Gun 8 | 1 . 1 6 Energy Cannon 1 | . . 1 . Ballistic Gun 3 | 1 1 1 . Ballistic Cannon 2 | . . . 2 Launcher 2 | . 1 . 1 Special Weapon . | . . . . Impact Weapon . | . . . . Slashing Weapon . | . . . . Piercing Weapon . | . . . . Special Melee Weapon . | . . . . Unidentified Prototypes 2 | . . 2 . Parts Lost 15 | . . . 15 Power 2 | . . . 2 Propulsion 5 | . . . 5 Utility 2 | . . . 2 Weapon 6 | . . . 6 Highest Loss Streak 10 | . . . 10 To Critical Strikes . | . . . . Average Backups 9 | 2 4 6 11 Power 1 | . 1 2 1 Propulsion 1 | . . . 2 Utility 2 | . . 1 3 Weapon 3 | 1 2 2 4 Tool/Special . | . . . . Unused Backups 7 | . 1 . 6 Power . | . . . . Propulsion 2 | . 1 . 1 Utility 5 | . . . 5 Weapon . | . . . . Tool/Special . | . . . . Average Slot Usage (%) 93 | . 85 92 95 Engine 8 | . 14 5 7 Leg 24 | . 28 22 24 Device 4 | . . . 6 Storage 10 | . 14 11 9 Processor 7 | . . 9 8 Protection 1 | . . . 2 Energy Gun 15 | . 9 7 19 Energy Cannon 3 | . . 7 4 Ballistic Gun 4 | . 8 18 . Ballistic Cannon 4 | . . . 6 Launcher 6 | . 10 11 3 Peak Build Rating 29 | 6 6 14 29 Average Rating 17 | 3 6 10 22 On Entrance 6 | . 6 6 12 Naked Turns . | . . . . Heaviest Build 50 | 13 15 36 50 Greatest Support 30 | 20 20 20 30 Greatest Overweight (x) 9 | . . 1 9 Average Overweight (x) . | . . . 1 Largest Inventory Capacity 15 | 8 8 15 15 Average Capacity 12 | 6 8 9 15 Most Carried 15 | 5 6 8 15 Average Carried 9 | 2 4 6 11 Final Capacity 15 | 8 8 15 15 Final Carried 13 | 2 5 8 13 Class Distribution -------------------- 64% | Gunner 17% | Mutant 16% | Bomber Dominant Class ---------------- Mutant | -10/Materials Bomber | -9/Materials Gunner | -8/Materials Resources | -11 -10 -9 -8 ----------- Run | Yrd Mat Mat Mat Matter Collected 1043 | 252 59 214 518 Remotely . | . . . . Salvage Created 1281 | . 172 343 766 Parts 84 | . 15 25 44 Haulers Intercepted 4 | . 1 2 1 Recyclers Shooed 1 | . 1 . . Parts Field Recycled . | . . . . Retrieved Matter . | . . . . Parts Self-Destructed . | . . . . Prevented . | . . . . Kills | -11 -10 -9 -8 ------- Run | Yrd Mat Mat Mat Combat Hostiles Destroyed 43 | . 7 12 24 Guns 10 | . 2 3 5 Cannons 5 | . . 1 4 AOE 28 | . 5 8 15 Classes Destroyed 8 | . 4 1 3 Worker 3 | . . . 3 Builder 1 | . . . 1 Hauler 4 | . 1 2 1 Watcher 4 | . 1 2 1 Swarmer 21 | . 6 8 7 Grunt 15 | . 1 2 12 Brawler 1 | . . . 1 Sentry 6 | . . 2 4 Best Kill Streak 6 | . 5 6 5 Combat Bots Only 5 | . 4 5 4 Max Kills in Single Turn 5 | . 2 5 3 Gunslinging . | . . . . Exploded 4 | . 2 4 3 Melee . | . . . . Uniques/NPCs Destroyed . | . . . . Combat | -11 -10 -9 -8 -------- Run | Yrd Mat Mat Mat Hostile Shots Fired 225 | . 28 25 172 Missed 80 | . 13 9 58 Hits 145 | . 15 16 114 Melee 1 | . . . 1 Projectile 144 | . 15 16 113 Critical Strikes 6 | . . . 6 Damage Taken 2292 | . 144 265 1883 Core 636 | . 36 45 555 Absorbed by Shields 321 | . . . 321 Core Remaining (%) 91 | 100 85 88 . Volleys Fired 94 | . 20 19 55 Largest 4 | . 2 4 4 Hottest 260 | . 70 133 260 Shots Fired 216 | . 31 68 117 Gun 126 | . 26 40 60 Cannon 46 | . . 17 29 Launcher 44 | . 5 11 28 Special . | . . . . Kinetic 53 | . 6 36 11 Thermal 97 | . . 19 78 Explosive 44 | . 5 11 28 Electromagnetic 22 | . 20 2 . Robot Hit Streak 8 | . 3 5 8 Robot Miss Streak 5 | . 2 4 5 Penetration Max . | . . . . Secondary Targets . | . . . . Shots Hit Robots 107 | . 14 29 64 Core Hits 91 | . 10 23 58 Critical Kills . | . . . . Critical Parts Destroyed . | . . . . Critical Strikes 3 | . 2 . 1 Burn 1 | . . . 1 Corrupt 2 | . 2 . . Melee Attacks . | . . . . Impact . | . . . . Slashing . | . . . . Piercing . | . . . . Sneak Attacks . | . . . . Combat Hostiles . | . . . . Follow-up Attacks . | . . . . Damage Inflicted 4053 | . 400 948 2705 Guns 1037 | . 154 301 582 Cannons 327 | . . 88 239 Explosions 2689 | . 246 559 1884 Melee . | . . . . Ramming . | . . . . Kinetic 386 | . 18 290 78 Thermal 842 | . . 99 743 Explosive 2689 | . 246 559 1884 Electromagnetic 136 | . 136 . . Impact . | . . . . Slashing . | . . . . Piercing . | . . . . Highest Corruption . | . . . . Average Corruption . | . . . . Corruption Purged . | . . . . Corruption Blocked . | . . . . Overload Shots . | . . . . Overflow Damage 139 | . 8 44 87 Projectiles . | . . . . Explosions 139 | . 8 44 87 Melee . | . . . . Knockbacks . | . . . . Impact . | . . . . Kinetic . | . . . . Secondary . | . . . . Self-Inflicted Damage 259 | . 20 58 181 Shots 11 | . 1 4 6 Rammed . | . . . . Targets Rammed . | . . . . Kicked . | . . . . Crushed . | . . . . Highest Temperature 534 | . 52 172 534 Average Temperature 120 | . 17 48 163 Received Heat Transfer 647 | . 12 87 548 Effects 3 | . . . 3 Shutdowns 2 | . . . 2 Energy Bleed 1 | . . . 1 Siege Activations . | . . . . Martial Activations . | . . . . Shielding Activations . | . . . . Robots Disrupted . | . . . . Combat Hostiles . | . . . . Robots Corrupted . | . . . . Combat Hostiles . | . . . . Parts Fried . | . . . . Impact Corruptions . | . . . . Robots Melted . | . . . . Combat Hostiles . | . . . . Parts Melted 2 | . . . 2 Heat Transferred 2039 | . . 210 1829 Parts Sabotaged . | . . . . Parts Stolen . | . . . . Parts Stripped . | . . . . Power Chain Reactions . | . . . . Alert | -11 -10 -9 -8 ------- Run | Yrd Mat Mat Mat Maximum Alert Level 2 | . . 1 2 Low Security (%) 80 | 100 100 66 78 Level 1 15 | . . 33 14 Level 2 4 | . . . 6 Level 3 . | . . . . Level 4 . | . . . . Level 5 . | . . . . High Security . | . . . . Max Security . | . . . . Peak Influence 498 | . 181 312 498 Initial 127 | . . 50 127 Average 118 | . 88 109 132 Influence Increases 1542 | . 251 389 902 Destroy 0b10 Robot/C 860 | . 140 240 480 Destroy 0b10 Robot/NC 60 | . 10 20 30 Destroy Leader 196 | . 24 68 104 Disable Machine 120 | . 30 . 90 Destroy Structure 291 | . 32 61 198 Lose Combat Pursuer 15 | . 15 . . Influence Decreases 1132 | . 130 208 794 Entered New Map 246 | . . 71 175 Time Decay 743 | . 130 137 476 Lost Part 143 | . . . 143 Squads Dispatched 6 | . . 3 3 Investigation . | . . . . Extermination . | . . . . Reinforcement 6 | . . 3 3 Assault . | . . . . Garrison . | . . . . Intercept . | . . . . Searches Triggered . | . . . . Construction Impeded 1 | . . 1 . Haulers Reinforced . | . . . . Active Scanning Responses . | . . . . Cargo Convoy Interrupts . | . . . . Stealth | -11 -10 -9 -8 --------- Run | Yrd Mat Mat Mat Distress Signals 7 | . 1 2 4 Communications Jammed . | . . . . Distress Signals . | . . . . Times Spotted 65 | . 9 16 40 Peak Tracking Total 8 | . 4 8 8 Tactical Retreats 1 | . 1 . . Traps | -11 -10 -9 -8 ------- Run | Yrd Mat Mat Mat Traps Triggered . | . . . . Indirectly . | . . . . Trap Hack Attempts . | . . . . Triggered . | . . . . Disarmed . | . . . . Reprogrammed . | . . . . Reused . | . . . . Traps Extracted . | . . . . Installed . | . . . . Triggered . | . . . . Machines | -11 -10 -9 -8 ---------- Run | Yrd Mat Mat Mat Machines Disabled 8 | . 2 . 6 Max in Single Turn 2 | . 2 . 1 Machines Repaired . | . . . . Machines Dismantled . | . . . . Machines Sabotaged . | . . . . Overloaded Fab Kills . | . . . . Hacking | -11 -10 -9 -8 --------- Run | Yrd Mat Mat Mat Machines Accessed . | . . . . Terminals . | . . . . Fabricators . | . . . . Repair Stations . | . . . . Recycling Units . | . . . . Scanalyzers . | . . . . Garrison Access . | . . . . Total Hacks . | . . . . Successful . | . . . . Failed . | . . . . Catastrophic . | . . . . Database Lockouts . | . . . . Manual . | . . . . Terminals . | . . . . Fabricators . | . . . . Repair Stations . | . . . . Recycling Units . | . . . . Scanalyzers . | . . . . Garrison Access . | . . . . Terminal Hacks . | . . . . Fabricator Hacks . | . . . . Repair Station Hacks . | . . . . Recycling Unit Hacks . | . . . . Scanalyzer . | . . . . Garrison Access Hacks . | . . . . Unauthorized Hacks . | . . . . Terminals . | . . . . Fabricators . | . . . . Repair Stations . | . . . . Recycling Units . | . . . . Scanalyzers . | . . . . Garrison Access . | . . . . Data Cores Recovered . | . . . . Used . | . . . . Hacking Detections . | . . . . Full Trace Events . | . . . . Feedback Events . | . . . . Feedback Blocked . | . . . . Robot Schematics Acquired . | . . . . Robots Built . | . . . . Authchips . | . . . . Time . | . . . . Total Robot Build Rating . | . . . . Part Schematics Acquired . | . . . . Parts Built . | . . . . Authchips . | . . . . Time . | . . . . Total Part Build Rating . | . . . . Parts Repaired . | . . . . Time . | . . . . Parts Recycled . | . . . . Recycled Matter . | . . . . Retrieved Matter . | . . . . Retrieved Components . | . . . . Parts Scanalyzed . | . . . . Part Schematics Acquired . | . . . . Parts Damaged . | . . . . Bothacking | -11 -10 -9 -8 ------------ Run | Yrd Mat Mat Mat Used RIF Installer . | . . . . Robots Hacked . | . . . . Non-combat . | . . . . Combat . | . . . . Robot Hacks Applied . | . . . . Relay Couplers Released . | . . . . Fabnet Peak Effective % . | . . . . Robots Rewired . | . . . . Allies Hacked . | . . . . Hacks Repelled . | . . . . Allies | -11 -10 -9 -8 -------- Run | Yrd Mat Mat Mat Total Allies . | . . . . Largest Group . | . . . . Highest-Rated Group . | . . . . Highest-Rated Ally . | . . . . Total Orders . | . . . . Ally Attacks . | . . . . Total Damage . | . . . . Kills . | . . . . Allies Corrupted . | . . . . Allies Melted . | . . . . Intel | -11 -10 -9 -8 ------- Run | Yrd Mat Mat Mat Active Infowar (turns) . | . . . . Robot Analysis Total . | . . . . Derelict Logs Recovered . | . . . . Drone Launches . | . . . . Drone Recoveries . | . . . . Exploration | -11 -10 -9 -8 ------------- Run | Yrd Mat Mat Mat Turns Passed 2206 | 65 334 362 1445 Spaces Moved 1093 | 51 223 220 599 Core 16 | 14 . . 2 Treads . | . . . . Legs 1077 | 37 223 220 597 Wheels . | . . . . Hover . | . . . . Flight . | . . . . Fastest Speed 50 | 50 120 120 190 Average Speed 167 | 100 120 126 206 Slowest Speed 500 | 120 120 190 500 Overloaded Moves . | . . . . Propulsion Burnouts . | . . . . Robots Hopped . | . . . . Potential Cave-ins . | . . . . Cave-ins Triggered . | . . . . Exploration Rate (%) 28 | 3 37 23 49 Regions Visited 3 Branch Regions . Pre-discovered Areas . | . . . . Known Exits Taken . | . . . . Unknown Exits Taken 3 | 1 1 1 . Scrap Searched . | . . . . Spaces Dug . | . . . . Terrain Destroyed 329 | . 29 58 242 Melee . | . . . . Projectile 2 | . . . 2 AOE 327 | . 29 58 240 Terrain Rammed . | . . . . Walls Destroyed . | . . . . Machines Disabled . | . . . . Actions | -11 -10 -9 -8 --------- Run | Yrd Mat Mat Mat Total 1289 | 64 259 257 709 Wait 16 | . 10 . 6 Move 1090 | 50 222 219 599 Hop . | . . . . Pick Up 40 | 8 4 8 20 Fast Attach . | . . . . Attach 20 | 6 . 4 10 Detach . | . . . . Swap 18 | . 2 5 11 Drop 11 | . 1 2 8 Fire 94 | . 20 19 55 Melee . | . . . . Ram . | . . . . Kick . | . . . . Crush . | . . . . Escape Stasis . | . . . . Rewire . | . . . . Trap . | . . . . Miscellaneous . | . . . . Route ------- -11/Scrapyard -10/Materials -9/Materials -8/Materials History --------- Turn | Location | Event 6 | -11/Scrapyard | Discovered new exit (range 16) 66 | -11/Scrapyard | Entered Materials 309 | -10/Materials | Build established: Mutant 366 | -10/Materials | Discovered new exit (range 16) 400 | -10/Materials | Entered another Materials area 400 | -9/Materials | Evolved 2 slots: Weapon x2 722 | -9/Materials | Discovered new exit (range 8) 762 | -9/Materials | Entered another Materials area 762 | -8/Materials | Evolved 2 slots: Propulsion x1, Utility x1 849 | -8/Materials | Build established: Bomber 1211 | -8/Materials | Build established: Gunner 2165 | -8/Materials | Core integrity fell below 50% 2203 | -8/Materials | Core integrity fell below 20% 2207 | -8/Materials | Destroyed by H-55 Commando with Gauss Rifle Last Messages --------------- Knocked back. Acquired 5 matter. The unstable cave ceiling collapses. U-05 Engineer lays Concrete. Missile Launcher destroyed. Assault Cannon destroyed. Acquired 1 matter. U-05 Engineer builds a Wall. Imp. Shield Generator destroyed. U-05 Engineer lays Concrete. Acquired 7 matter. U-05 Engineer lays Concrete. Penetrated by Slug. Gatling Laser destroyed. Critical hit (Blast). Knocked back. U-05 Engineer builds a Wall. Beam Rifle destroyed. U-05 Engineer lays Concrete. Penetrated by Slug. Map ----- +----------------------------------------------------+ | | | | | | | ?????????????????????????????????????????????????? | | ?????????????????????????????????????????????????? | | ?????????????????????????????????????????????????? | | ?????????????????????????????????????????????##### | | ?????????????????????????????????????????????# """ | | ?????????????????????????????????????????????# "T" | | ??????????????????????????????????????????#### | | ??????????????????????????????????????????# # | | ?????????????????????????????????????????## | | ?????????????????????????????????????????# # | | ??????????????????????????????????????????# ! | | ??????????????????????????????????????????# # | | ?????????????????????####??????????????### | | ??????????????????? #??????????????#""" #### | | ????????????????? #?????????????##"Y"#### # | | ??????????????#?""""""" #?????????????# #### | | ??????????????# """"""" #?????????????# """ + | | ??????????????# """"""" #?????????????# """ #### | | ?????????? """"""" #?????????????# """ ####| | | ??????? "%"" "" ##????????????# ## #% | | ???????? # ## ;##???????????# ! ## #! | | ???????# # t # ;##################+### | | ???? Y % @ | | ???? H h s | | ???? [ % s | | ????? ### # # # ## ############## | | ?????????# [# % # # ## # ########### | | ?????????# ## s ## #uw ### # # # | | ?????????#] ??#as ### # ### # # """ " | | ?????????# ???# #?### ### ####### """ "" | | ?????????#! ????# #???# # # % / " " "" | | ?????????# ?????# #???# # # ## # ! | | ???????????????? ????# ## ## ## #######+## | | ??????????????? ????# #####+# | | ?????????????? T ????# # | | ??????????????? ????# # # | | ???????????????#! ????# # # ########## | | ???????????????###?#????# # # ########?? | | ????????????????????????? ? # ## #?? | | ????????????????????????????????? # ## """ #?? | | ????????????????????????????????? ??# ## """ #?? | | ????????????????????????????????????# ## """ #?? | | ????????????????????????????????????# ## #?? | | ????????????????????????????????????# ## """ #?? | | ????????????????????????????????????# ## """ #?? | | ????????????????????????????????????# ## """ #?? | | ????????????????????????????????????# ## #?? | +----------------------------------------------------+ Best States ------------- Heat Dissipation 31 Energy Generation 14 Energy Capacity 280 Matter Stores 300 Matter Capacity 300 Sight Range 16 Terrain Scan Density 10 Armor Coverage 150 Evasion (%) 55 Targeting Accuracy 6 Salvage Targeting 1 Item Schematics ----------------- None Robot Schematics ------------------ None Fabricated ------------ Nothing Repaired ---------- Nothing Alien Tech Used ----------------- None Achievements -------------- None Challenges ------------ None Game ------ Seed FrostThrusterManipulator Manual? 0 Play Time 00:22:59 Cumulative 4.1 hours Start 2025.09.28 @ 13:45:45 End 2025.09.28 @ 14:08:36 Sessions 1 Manual Loads 0 Difficulty Rogue Special Mode None Game No. 7 Rogue 7 Adventurer 0 Explorer 0 Win Type - Total 0 Types 0/0/0/0/0/0/0/0/0/0 Lore% 1 Gallery% 9 Achievement% 7 Wizard Run 0 Options --------- Layout 1 ASCII 0 Keyboard 0 Movement Arrows Keybinds 0 Fullscreen 1 Font 24/Smallcaps Map View 76x35 Zoom Use 0% Tactical HUD 0 Map Filters NONE Filters NONE Steam 1 RUN: f2cea1ef-b36f-416b-9a6b-4e36d9af2d0d